[Event "22nd Rochefort Festival Masters 2024"]
[Site "Rochefort"]
[Date "2024.02.18"]
[Round "3.1"]
[White "Colin, Vincent"]
[Black "Romanov, Evgeny"]
[Result "0-1"]
[ECO "D00"]
[WhiteElo "2311"]
[BlackElo "2578"]
[Annotator "TA"]
[PlyCount "74"]
[EventDate "2024.02.18"]
[EventType "swiss"]
[EventCountry "FRA"]
[SourceTitle "playchess.com"]
[Source "ChessBase"]
[SourceQuality "1"]
[TimeControl "40/5400+30:1800+30"]

{[%evp 9,74,-43,0,-60,-28,-33,-41,-53,-56,-60,-45,-45,-33,-45,-45,-41,-44,-42,-27,-70,-56,-62,-24,-115,-112,-122,-120,-156,-145,-164,-160,-143,-155,-180,-162,-171,-160,-206,-194,-308,-291,-306,-316,-333,-251,-335,-338,-401,-374,-397,-362,-367,-404,-414,-414,-436,-441,-732,-680,-755,-762,-3179,-2905,-29988,-29989,-29990,-29991]} 1. d4 {[%emt 0:00:04]} Nf6 {[%emt 0:13:03]} 2. Nc3 {[%emt 0:00:06]} d5 {[%emt 0:01:45]} 3. Bf4 {[%emt 0:00:13]} a6 {[%emt 0:01:10]} 4. f3 {[%emt 0:03:55]} b5 {[%emt 0:00:57]} 5. a3 {[%emt 0:01:49]} c5 {[%emt 0:03:38]} 6. e3 {[%emt 0:01:58]} (6. dxc5 $11 d4 7. Nb1) 6... cxd4 {[%emt 0:01:59]} 7. exd4 {[%emt 0:00:36]} Nc6 {[%emt 0:00:04]} 8. g4 {[%emt 0:00:43] Black is slightly better.} e6 {[%emt 0:01:03]} 9. h4 {[%emt 0:10:16]} b4 {[%emt 0:01:53]} 10. axb4 {[%emt 0:00:28]} Bxb4 {[%emt 0:00:07]} 11. h5 {[%emt 0:06:41]} h6 {[%emt 0:03:10]} 12. Bb5 {[%emt 0:09:15]} Bd7 {[%emt 0:05:11]} 13. Ba4 {[%emt 0:01:36]} Nh7 {[%emt 0:02:48]} 14. Nh3 {[%emt 0:09:09]} Na5 {[%emt 0:05:41]} 15. Bxd7+ {[%emt 0:06:35]} Qxd7 {[%emt 0:01:31]} 16. O-O {[%emt 0:05:25] [#]} (16. Qd3 $1 $11 {keeps the balance.}) 16... Bxc3 $1 $17 {[%emt 0:00:24] White is now going downhill.} 17. bxc3 {[%emt 0:00:06]} Nc4 {[%emt 0:00:05]} 18. Qe1 {[%emt 0:01:49]} O-O {[%emt 0:01:12]} 19. Qg3 {[%emt 0:00:32]} f6 {[%emt 0:00:25]} 20. Bc1 {[%emt 0:00:45]} e5 {[%emt 0:05:16] Repels Nf4} 21. Nf2 {[%emt 0:04:04]} a5 {[%emt 0:01:17]} 22. Nd3 {[%emt 0:00:36]} Rfe8 {[%emt 0:00:39]} 23. Nc5 {[%emt 0:01:22]} (23. Re1 $17) 23... Qc6 $19 {[%emt 0:03:39]} 24. f4 {[%emt 0:05:13]} (24. Nd3 $142) 24... exf4 {[%emt 0:01:59]} 25. Bxf4 {[%emt 0:00:53]} a4 {[%emt 0:01:53]} 26. Nd3 {[%emt 0:02:42]} Ng5 {[%emt 0:07:50]} 27. Nb4 {[%emt 0:00:40]} Qd7 {[%emt 0:01:01]} 28. Bxg5 {[%emt 0:03:33]} hxg5 {[%emt 0:00:21]} 29. Rfe1 {[%emt 0:05:13]} Re4 {[%emt 0:12:56]} 30. Rxe4 {[%emt 0:01:57]} dxe4 {[%emt 0:00:02]} 31. Qg2 {[%emt 0:02:11]} Re8 {[%emt 0:00:19]} 32. Re1 {[%emt 0:01:02]} e3 {[%emt 0:05:02] Threatens to win with ...Nd2.} 33. Nd3 {[%emt 0:02:14]} (33. Qd5+ $142 Qxd5 34. Nxd5) 33... a3 {[%emt 0:02:11]} 34. Nc5 {[%emt 0:03:27]} Qd6 {[%emt 0:00:48]} 35. Nb7 {[%emt 0:03:49]} Qf4 {[%emt 0:01:04] aiming for ...Nd2.} 36. Rf1 {[%emt 0:01:36] [#]} e2 $1 {[%emt 0:01:18]} 37. Rxf4 {[%emt 0:01:33]} (37. Re1 a2) 37... gxf4 {[%emt 0:00:17] Weighted Error Value: White=0.70/Black=0.05 (flawless) .  Mistake:       	White=4     	---        Inaccurate:     	White=2     	Black=2      OK:         	White=7     	Black=17     Strong:       	---       	Black=1} 0-1

[Event "22nd Rochefort Festival Masters 2024"]
[Site "Rochefort"]
[Date "2024.02.18"]
[Round "3.2"]
[White "Laurent-Paoli, Pierre"]
[Black "Mekhane, Adam"]
[Result "1-0"]
[ECO "E29"]
[WhiteElo "2529"]
[BlackElo "2280"]
[Annotator "TA"]
[PlyCount "65"]
[EventDate "2024.02.18"]
[EventType "swiss"]
[EventCountry "FRA"]
[SourceTitle "playchess.com"]
[Source "ChessBase"]
[SourceQuality "1"]
[TimeControl "40/5400+30:1800+30"]

{[%evp 13,65,-4,0,-32,-35,-35,-41,-31,33,27,38,32,38,12,116,123,123,122,135,127,113,100,110,116,142,0,0,0,306,289,227,166,157,145,147,132,268,215,226,244,1004,1021,1019,1040,959,954,902,849,29971,29972,6287,5473,5522,5522]} 1. d4 {[%emt 0:09:11]} Nf6 {[%emt 0:00:33]} 2. c4 {[%emt 0:00:17]} e6 {[%emt 0:00:34]} 3. Nc3 {[%emt 0:03:36]} Bb4 {[%emt 0:00:47]} 4. e3 {[%emt 0:00:22]} O-O {[%emt 0:00:33]} 5. a3 {[%emt 0:02:07]} Bxc3+ {[%emt 0:01:31]} 6. bxc3 {[%emt 0:00:41]} c5 {[%emt 0:00:18]} 7. Bd3 {[%emt 0:00:58]} Nc6 {[%emt 0:01:48]} 8. Rb1 {[%emt 0:01:05]} d6 {[%emt 0:03:38]} 9. Ne2 {[%emt 0:01:32]} b6 {[%emt 0:10:02]} 10. e4 {[%emt 0:01:02] Black is slightly better.} e5 {[%emt 0:07:00]} (10... Nd7 $15) 11. d5 $14 {[%emt 0:03:56]} Ne7 {[%emt 0:01:09]} 12. f3 {[%emt 1:11:43]} Ne8 {[%emt 0:15:56]} 13. g4 {[%emt 0:00:00]} g6 {[%emt 0:02:05]} (13... Ng6 $11) 14. Ng3 $16 {[%emt 0:00:00]} f5 {[%emt 0:10:59]} 15. exf5 {[%emt 0:00:00]} gxf5 {[%emt 0:00:33]} 16. Bg5 $1 {[%emt 0:00:00]} Ng7 {[%emt 0:04:00]} 17. Qc2 {[%emt 0:00:00] gxf5 is the strong threat. White is much more active.} Qe8 {[%emt 0:02:58] [#]} 18. O-O $1 {[%emt 0:00:00]} Qf7 {[%emt 0:06:48]} 19. Bxe7 {[%emt 0:00:00]} ({White should play} 19. Rbe1 $16) 19... Qxe7 $11 {[%emt 0:00:07]} 20. gxf5 {[%emt 0:00:00]} ({Don't play} 20. Nxf5 Bxf5 21. gxf5 Nh5 $17 (21... Qg5+ 22. Kh1 $11)) (20. Bxf5 Nxf5 21. gxf5 Qg5 $17) 20... h5 $2 {[%emt 0:11:10][%mdl 8192] [#]} (20... Qh4 $11) 21. Kh1 $1 $18 {[%emt 0:00:00]} h4 {[%emt 0:04:40]} 22. Ne4 {[%emt 0:00:00] Rg1 would now be deadly.} Bxf5 {[%emt 0:01:06]} 23. Rg1 {[%emt 0:00:00] Black must now prevent Qd2.} Kh8 {[%emt 0:02:22]} 24. Qd2 {[%emt 0:00:00]} Bh7 {[%emt 0:04:46] A mistake that costs the game.} (24... Nh5 $16 {was called for.}) 25. Ng5 {[%emt 0:00:00]} Bxd3 {[%emt 0:02:48]} 26. Qxd3 {[%emt 0:00:00]} Rf5 $2 {[%emt 0:01:39] [#]} (26... Nf5 27. f4 Rf6) 27. Qe4 $1 {[%emt 0:00:00]} Qxg5 {[%emt 0:02:10]} 28. Rxg5 {[%emt 0:00:00]} Rxg5 {[%emt 0:00:02]} 29. Qxh4+ {[%emt 0:00:00]} Rh5 {[%emt 0:00:01]} 30. Qf6 {[%emt 0:00:00][%cal Ob1g1] And now Rg1! would win.} Rg8 {[%emt 0:02:48]} 31. Rg1 {[%emt 0:00:00]} Kh7 {[%emt 0:00:17]} 32. Qg6+ {[%emt 0:00:00]} Kh8 {[%emt 0:00:12]} 33. Qxd6 {[%emt 0:00:00] Weighted Error Value: White=0.18 (very precise) /Black=0.77.  Loses game:     	---       	Black=1      Mistake:       	White=1     	Black=4      Inaccurate:     	White=1     	---        OK:         	White=8     	Black=6      Best:        	White=1     	Black=2      Strong:       	White=2     	---} 1-0

[Event "22nd Rochefort Festival Masters 2024"]
[Site "Rochefort"]
[Date "2024.02.18"]
[Round "3.3"]
[White "Vallee, Louis"]
[Black "Sivuk, Vitaly"]
[Result "0-1"]
[ECO "E71"]
[WhiteElo "2251"]
[BlackElo "2502"]
[Annotator "RC"]
[PlyCount "156"]
[EventDate "2024.02.18"]
[EventType "swiss"]
[EventCountry "FRA"]
[SourceTitle "playchess.com"]
[Source "ChessBase"]
[SourceQuality "1"]
[TimeControl "40/5400+30:1800+30"]

1. d4 {[%emt 0:00:02]} Nf6 {[%emt 0:14:44]} 2. c4 {[%emt 0:00:09]} g6 {[%emt 0:00:14]} 3. Nc3 {[%emt 0:00:09]} Bg7 {[%emt 0:00:08]} 4. e4 {[%emt 0:00:06]} d6 {[%emt 0:00:07]} 5. h3 {[%emt 0:00:05]} O-O {[%emt 0:00:30]} 6. Be3 {[%emt 0:00:08]} Nbd7 {[%emt 0:00:11]} 7. g4 {[%emt 0:00:11]} a6 {[%emt 0:00:09]} 8. Qd2 {[%emt 0:16:06]} c5 {[%emt 0:02:17]} 9. Nf3 {[%emt 0:00:35]} b5 {[%emt 0:00:51]} 10. cxb5 {[%emt 0:01:23]} axb5 {[%emt 0:00:06]} 11. Bxb5 {[%emt 0:01:53]} Bb7 {[%emt 0:00:07]} 12. d5 {[%emt 0:07:28]} Qa5 {[%emt 0:00:52]} 13. Be2 {[%emt 0:10:32]} Rfb8 {[%emt 0:01:56]} 14. O-O {[%emt 0:04:26]} Ba6 {[%emt 0:00:09]} 15. Rab1 {[%emt 0:08:19]} Nxe4 {[%emt 0:02:46]} 16. Qc2 {[%emt 0:10:24]} Bxe2 {[%emt 0:10:45]} 17. Nxe2 {[%emt 0:00:14]} Nef6 {[%emt 0:00:43]} 18. Nc3 {[%emt 0:00:41]} Nb6 {[%emt 0:00:39]} 19. Rfd1 {[%emt 0:12:44]} h5 {[%emt 0:03:02]} 20. g5 {[%emt 0:03:09]} Nfd7 {[%emt 0:00:55]} 21. Bd2 {[%emt 0:00:59]} Nc4 {[%emt 0:01:48]} 22. Be1 {[%emt 0:00:43]} Qa6 {[%emt 0:01:54]} 23. Kg2 {[%emt 0:05:46]} Qb7 {[%emt 0:05:41]} 24. Qe2 {[%emt 0:02:10]} Ndb6 {[%emt 0:03:20]} 25. Qe4 {[%emt 0:08:12]} Bxc3 {[%emt 0:05:50]} 26. Bxc3 {[%emt 0:00:17]} Rxa2 {[%emt 0:00:42]} 27. b4 {[%emt 0:01:34]} Ra3 {[%emt 0:22:59]} 28. Ba1 {[%emt 0:03:03]} e6 {[%emt 0:03:31]} 29. bxc5 {[%emt 0:00:38]} dxc5 {[%emt 0:00:07]} 30. Ne5 {[%emt 0:02:29]} exd5 {[%emt 0:04:15]} 31. Nxc4 {[%emt 0:00:48]} dxe4 {[%emt 0:01:51]} 32. Rxb6 {[%emt 0:00:21]} Qxb6 {[%emt 0:00:22]} 33. Nxb6 {[%emt 0:00:07]} Rxa1 {[%emt 0:00:05]} 34. Rxa1 {[%emt 0:00:07]} Rxb6 {[%emt 0:00:03]} 35. Ra8+ {[%emt 0:00:15]} Kg7 {[%emt 0:00:06]} 36. Rc8 {[%emt 0:00:05]} Rb5 {[%emt 0:00:32]} 37. h4 {[%emt 0:01:29]} Rb2 {[%emt 0:01:32]} 38. Kg3 {[%emt 0:00:59]} Rb3+ {[%emt 0:00:34]} 39. Kf4 {[%emt 0:00:43]} Rf3+ {[%emt 0:00:19]} 40. Kxe4 {[%emt 0:00:06]} Rxf2 {[%emt 0:00:05]} 41. Rxc5 {[%emt 0:30:42]} Rh2 {[%emt 0:30:05]} 42. Kf4 {[%emt 0:00:00]} Rxh4+ {[%emt 0:00:00]} 43. Kg3 {[%emt 0:00:00]} Rg4+ {[%emt 0:00:00]} 44. Kf3 {[%emt 0:00:00]} Rg1 {[%emt 0:00:00]} 45. Kf2 {[%emt 0:00:00]} Rd1 {[%emt 0:00:00]} 46. Kg2 {[%emt 0:00:00]} Kf8 {[%emt 0:00:00]} 47. Re5 {[%emt 0:00:00]} Rd6 {[%emt 0:00:00]} 48. Kg3 {[%emt 0:00:00]} f6 {[%emt 0:00:00]} 49. gxf6 {[%emt 0:00:00]} Kf7 {[%emt 0:00:00]} 50. Kf4 {[%emt 0:00:00]} Kxf6 {[%emt 0:00:00]} 51. Re8 {[%emt 0:00:00]} g5+ {[%emt 0:00:00]} 52. Kg3 {[%emt 0:00:00]} Rd3+ {[%emt 0:00:00]} 53. Kg2 {[%emt 0:00:00]} Kf5 {[%emt 0:00:00]} 54. Ra8 {[%emt 0:00:00]} Rd2+ {[%emt 0:00:00]} 55. Kg3 {[%emt 0:00:00]} h4+ {[%emt 0:00:00]} 56. Kh3 {[%emt 0:00:00]} Rd3+ {[%emt 0:00:00]} 57. Kg2 {[%emt 0:00:00]} Re3 {[%emt 0:00:00]} 58. Kf2 {[%emt 0:00:00]} Re4 {[%emt 0:00:00]} 59. Kf3 {[%emt 0:00:00]} Rf4+ {[%emt 0:00:00]} 60. Kg2 {[%emt 0:00:00]} Kg4 {[%emt 0:00:00]} 61. Ra3 {[%emt 0:00:00]} Rb4 {[%emt 0:00:00]} 62. Kh2 {[%emt 0:00:00]} Rb2+ {[%emt 0:00:00]} 63. Kg1 {[%emt 0:00:00]} h3 {[%emt 0:00:00]} 64. Ra4+ {[%emt 0:00:00]} Kg3 {[%emt 0:00:00]} 65. Ra3+ {[%emt 0:00:00]} Kh4 {[%emt 0:00:00]} 66. Ra4+ {[%emt 0:00:00]} g4 {[%emt 0:00:00]} 67. Rc4 {[%emt 0:00:00]} Re2 {[%emt 0:00:00]} 68. Ra4 {[%emt 0:00:00]} Kg3 {[%emt 0:00:00]} 69. Ra1 {[%emt 0:00:00]} Re3 {[%emt 0:00:00]} 70. Rf1 {[%emt 0:00:00]} Rd3 {[%emt 0:00:00]} 71. Kh1 {[%emt 0:00:00]} Kh4 {[%emt 0:00:00]} 72. Rf4 {[%emt 0:00:00]} Kg5 {[%emt 0:00:00]} 73. Ra4 {[%emt 0:00:00]} g3 {[%emt 0:00:00]} 74. Ra5+ {[%emt 0:00:00]} Kf4 {[%emt 0:00:00]} 75. Ra1 {[%emt 0:00:00]} Ke3 {[%emt 0:00:00]} 76. Re1+ {[%emt 0:00:10]} Kf2 {[%emt 0:00:00]} 77. Rf1+ {[%emt 0:00:11]} Ke2 {[%emt 0:00:00]} 78. Kg1 {[%emt 0:00:06]} Rd1 {[%emt 0:00:00]} 0-1

[Event "22nd Rochefort Festival Masters 2024"]
[Site "Rochefort"]
[Date "2024.02.18"]
[Round "3.4"]
[White "Boyer, Mahel"]
[Black "Favarel, Julien"]
[Result "1-0"]
[ECO "E65"]
[WhiteElo "2428"]
[BlackElo "2312"]
[Annotator "TA"]
[PlyCount "57"]
[EventDate "2024.02.18"]
[EventType "swiss"]
[EventCountry "FRA"]
[SourceTitle "playchess.com"]
[Source "ChessBase"]
[SourceQuality "1"]
[TimeControl "40/5400+30:1800+30"]

{[%evp 15,57,12,12,4,6,12,15,14,0,0,0,0,14,3,33,42,45,37,76,64,69,69,122,57,118,133,121,118,243,232,235,230,273,241,229,235,265,268,287,227,217,214,714,710]} 1. d4 {[%emt 0:10:34]} Nf6 {[%emt 0:00:07]} 2. c4 {[%emt 0:00:16]} g6 {[%emt 0:00:06]} 3. g3 {[%emt 0:01:34]} Bg7 {[%emt 0:00:09]} 4. Bg2 {[%emt 0:00:07]} O-O {[%emt 0:00:07]} 5. Nc3 {[%emt 0:00:08]} d6 {[%emt 0:00:30]} 6. Nf3 {[%emt 0:00:14]} c5 {[%emt 0:00:43]} 7. O-O {[%emt 0:00:58]} Nc6 {[%emt 0:00:22]} 8. dxc5 {[%emt 0:01:25]} dxc5 {[%emt 0:00:02]} 9. Qb3 {[%emt 0:00:06]} Na5 {[%emt 0:01:55]} 10. Qa3 {[%emt 0:00:31]} b6 {[%emt 0:03:14][%cal Oc8b7]} 11. Rd1 {[%emt 0:02:13] The position is equal.} Qe8 {[%emt 0:13:28]} 12. b3 {[%emt 0:09:08]} Bb7 {[%emt 0:05:17]} 13. Bb2 {[%emt 0:02:13]} Rd8 {[%emt 0:05:58]} 14. Nb5 {[%emt 0:08:46][%cal Bc3b5,Bb5c7,Bc7d5][%mdl 32]} a6 {[%emt 0:36:17]} 15. Nc7 {[%emt 0:12:40]} Qc6 {[%emt 0:08:57]} 16. Be5 {[%emt 0:00:20]} Qe4 {[%emt 0:01:46]} 17. Qb2 {[%emt 0:01:45]} Nc6 {[%emt 0:08:00] And now ...Nxe5 would win.} 18. Nd5 $1 {[%emt 0:01:27]} Nd4 {[%emt 0:02:28]} 19. Nxe7+ $16 {[%emt 0:28:53]} (19. Nxd4 $2 Qxe5 20. Nxf6+ Bxf6 21. Bxb7 Qb8 $19) 19... Kh8 {[%emt 0:00:02] [#]} 20. Nd5 $1 {[%emt 0:00:03][%mdl 512]} Bxd5 {[%emt 0:02:54]} 21. cxd5 {[%emt 0:01:15]} (21. Bxd4 cxd4 22. cxd5 Nxd5 $14) 21... Nxe2+ {[%emt 0:05:02] This move loses the game for Black.} (21... Qxd5 $16 22. Bxd4 (22. Nxd4 $2 Qxe5 23. e3 cxd4 $19) 22... cxd4) 22. Kh1 $18 {[%emt 0:00:41]} Nd4 {[%emt 0:00:22]} 23. Re1 {[%emt 0:00:55][%cal Bd1e1,Be1e5,Be5f5][%mdl 32]} (23. Nxd4 $2 Qxe5 24. f4 Qc7 $19 (24... Qh5 $2 25. Bf3 $19)) (23. Bxd4 cxd4 24. Nxd4 Qe8) 23... Qg4 {[%emt 0:03:28]} 24. Nxd4 {[%emt 0:01:23]} (24. Bxd4 cxd4 25. Ne5 (25. Nxd4 $2 Nxd5 26. Rad1 Nb4 $17) (25. Qxd4 Ne4 $17) 25... Qh5 $14) 24... cxd4 {[%emt 0:00:16]} 25. h3 {[%emt 0:00:35]} (25. Qxd4 Qxd4 26. Bxd4 Nxd5 27. Bxg7+ Kxg7 $11) 25... Qf5 {[%emt 0:00:54]} 26. Qxd4 {[%emt 0:00:07]} Rfe8 {[%emt 0:00:26]} 27. Rad1 {[%emt 0:02:20][%cal Og3g4] Hoping for g4!} ({Much less strong is} 27. Qxb6 $6 Nxd5 28. Bxg7+ (28. Qxa6 $2 Bxe5 29. Rxe5 Qxe5 $19) 28... Kxg7 $18) 27... Rxe5 {[%emt 0:00:36]} 28. Rxe5 {[%emt 0:00:28]} Ng4 $2 {[%emt 0:00:31]} (28... Ne4 29. Rxf5 (29. Bxe4 Qxe5 30. Qd3 Bf8 $14) (29. Qxb6 Nxf2+ 30. Kh2 Qf6 $16) 29... Bxd4 30. Rxf7 (30. Bxe4 gxf5 31. Rxd4 fxe4 $18) 30... Nxf2+ 31. Rxf2 Bxf2) 29. Rxf5 {[%emt 0:00:12] Weighted Error Value: White=0.06 (flawless) /Black=0.22 (precise) .  Mistake:       	---       	Black=3      Inaccurate:     	---       	Black=3      OK:         	White=8     	Black=8      Best:        	White=5     	Black=1      Strong:       	White=1     	---        Brilliant:      	White=1     	---} ({Less strong is} 29. Qxb6 Nxf2+ 30. Kh2 Qf6 31. Qxf6 Bxf6 $16) 1-0

[Event "22nd Rochefort Festival Masters 2024"]
[Site "Rochefort"]
[Date "2024.02.18"]
[Round "3.5"]
[White "Eugene, Floryan"]
[Black "Marie, Maxime"]
[Result "1-0"]
[ECO "B15"]
[WhiteElo "2398"]
[BlackElo "2204"]
[Annotator "TA"]
[PlyCount "75"]
[EventDate "2024.02.18"]
[EventType "swiss"]
[EventCountry "FRA"]
[SourceTitle "playchess.com"]
[Source "ChessBase"]
[SourceQuality "1"]
[TimeControl "40/5400+30:1800+30"]

{[%evp 9,75,6,22,25,19,0,68,47,65,73,67,63,76,41,47,41,38,0,51,3,92,91,81,105,112,104,274,292,327,345,345,344,468,456,452,446,575,586,776,774,767,775,732,718,1468,1243,1190,1106,1076,677,762,642,638,623,854,571,29988,29989,29989,29990,29990,29991,29991,29992,29992,29993,29996,29997]} 1. e4 {[%emt 0:08:18]} c6 {[%emt 0:00:43]} 2. d4 {[%emt 0:01:05]} d5 {[%emt 0:00:09]} 3. exd5 {[%emt 0:02:41]} cxd5 {[%emt 0:00:07]} 4. Bf4 {[%emt 0:01:07]} g6 {[%emt 0:04:12]} 5. Nc3 {[%emt 0:08:50]} a6 {[%emt 0:13:13]} 6. Qd2 {[%emt 0:03:50]} Nc6 {[%emt 0:02:10]} 7. Nf3 {[%emt 0:01:27]} f6 {[%emt 0:10:50]} (7... Bf5 $11) 8. h3 {[%emt 0:07:29] White is slightly better.} Bg7 {[%emt 0:03:53]} 9. O-O-O {[%emt 0:00:15]} b5 {[%emt 0:05:52]} 10. Kb1 {[%emt 0:05:18]} e6 {[%emt 0:04:37]} 11. g4 {[%emt 0:03:31][%cal Bg2g4,Bg4g5][%mdl 32] White is more active.} Nge7 {[%emt 0:02:14]} 12. Bh6 {[%emt 0:09:04]} O-O {[%emt 0:08:43]} 13. Bg2 {[%emt 0:00:40]} Bd7 {[%emt 0:02:20]} (13... b4 $11 14. Ne2 Bxh6 15. Qxh6 a5) 14. h4 {[%emt 0:01:51]} (14. Bxg7 $14 Kxg7 15. Ne1) 14... Nc8 {[%emt 0:03:11]} (14... Bxh6 $11 {remains equal.} 15. Qxh6 Qc7) 15. Bxg7 $16 {[%emt 0:00:48]} Kxg7 {[%emt 0:00:12][%cal Bg8g7,Bg7f7,Bf7e7,Be7d6,Bd6c6,Bc6b7][%mdl 32]} 16. g5 {[%emt 0:00:03]} (16. Ne2 {simplifies} Nd6 17. g5 fxg5 18. hxg5 Kg8 19. Rh4) 16... Nd6 {[%emt 0:03:49] [#]} 17. h5 $1 $36 {[%emt 0:00:43][%mdl 2048] hxg6 is the strong threat. White is on the roll.} Nc4 $2 {[%emt 0:08:48] [#] Black cannot hold the game after this.} (17... Be8 $16) 18. Qc1 $1 $18 {[%emt 0:00:34] Hoping for hxg6.} fxg5 {[%emt 0:01:00]} 19. Nxg5 {[%emt 0:06:44] Threatens to win with hxg6.} h6 {[%emt 0:03:34] [#]} 20. Nf7 {[%emt 0:06:22][%mdl 512]} Kxf7 {[%emt 0:03:19]} (20... Rxf7 21. hxg6) 21. hxg6+ {[%emt 0:00:05]} (21. Qxh6 Qf6 22. Nxd5 (22. Qh7+ Ke8 $17) 22... exd5 $14) 21... Ke7 {[%emt 0:00:33]} 22. Qxh6 {[%emt 0:01:24]} Nb4 {[%emt 0:03:00]} 23. g7 {[%emt 0:03:07] Nxd5+ would now be deadly.} Rg8 {[%emt 0:02:33] [#]} 24. Bxd5 $1 {[%emt 0:10:30][%mdl 512]} Nxd5 {[%emt 0:05:52]} 25. Nxd5+ {[%emt 0:00:06][%cal Bc3d5,Bd5f6,Bf6d7][%mdl 32]} Kd6 {[%emt 0:00:03]} 26. Nf6 {[%emt 0:00:34]} Qa5 {[%emt 0:00:58]} 27. Qf4+ {[%emt 0:00:45]} Kc6 {[%emt 0:01:29]} 28. d5+ {[%emt 0:00:26]} Kb7 {[%emt 0:00:46]} 29. Nxd7 {[%emt 0:03:28]} Qb4 {[%emt 0:00:34] Dodges Nc5+} 30. Qd4 {[%emt 0:00:17]} (30. dxe6 $2 Qxb2#) 30... Rac8 {[%emt 0:00:48] Prevents Nc5+. White must now prevent ...Na3+.} 31. Ka1 {[%emt 0:00:07]} (31. dxe6 $2 {perishes.} Na3+ 32. Ka1 Nxc2+ 33. Kb1 Nxd4 $19) 31... exd5 {[%emt 0:01:20]} 32. Rh6 {[%emt 0:01:31] Wards off Qd6} Rge8 {[%emt 0:02:00]} 33. Qxd5+ {[%emt 0:00:50] White mates.} Ka7 {[%emt 0:00:37]} 34. Qd4+ {[%emt 0:00:14]} Kb7 {[%emt 0:00:06] [#]} 35. Rb6+ $1 {[%emt 0:02:36]} Kc7 {[%emt 0:00:04]} 36. g8=Q {[%emt 0:00:09]} Rxg8 {[%emt 0:00:32]} 37. Qf4+ {[%emt 0:00:05]} Kd8 {[%emt 0:00:47]} 38. Nc5+ {[%emt 0:00:12] Weighted Error Value: White=0.55/Black=0.60.  Loses game:     	---       	Black=1      Mistake:       	White=1     	Black=3      Inaccurate:     	White=2     	Black=2      OK:         	White=7     	Black=9      Best:        	White=1     	---        Strong:       	White=2     	---} (38. Rxa6 $2 Qxb2#) 1-0

[Event "22nd Rochefort Festival Masters 2024"]
[Site "Rochefort"]
[Date "2024.02.19"]
[Round "4.1"]
[White "Romanov, Evgeny"]
[Black "Boyer, Mahel"]
[Result "1-0"]
[ECO "D31"]
[WhiteElo "2578"]
[BlackElo "2428"]
[Annotator "TA"]
[PlyCount "49"]
[EventDate "2024.02.18"]
[EventType "swiss"]
[EventCountry "FRA"]
[SourceTitle "playchess.com"]
[Source "ChessBase"]
[SourceQuality "1"]
[TimeControl "40/5400+30:1800+30"]

{[%evp 9,49,18,19,0,0,0,24,44,35,39,38,33,20,31,23,26,126,58,67,56,109,95,164,135,137,126,243,173,247,250,259,218,465,478,485,478,483,471,1702,1700,1597,1584]} 1. c4 {[%emt 1:31:00]} e6 {[%emt 0:01:42]} 2. Nc3 {[%emt 0:00:00]} d5 {[%emt 0:00:15]} 3. d4 {[%emt 0:00:00]} a6 {[%emt 0:00:07]} 4. cxd5 {[%emt 0:00:00]} exd5 {[%emt 0:00:05]} 5. Qb3 {[%emt 0:00:00]} c5 {[%emt 0:05:14]} 6. Nxd5 {[%emt 0:00:00] Strongly threatening e4.} (6. Qxd5 {simplifies} cxd4 7. Qxd8+ Kxd8 8. Nd5) 6... Nc6 {[%emt 0:05:59]} 7. Bg5 {[%emt 0:00:00]} f6 {[%emt 0:16:41]} 8. Be3 {[%emt 0:00:00] White has an edge.} cxd4 {[%emt 0:06:51]} ({Don't go for} 8... Be6 $2 9. Nc7+ (9. Qxb7 $2 {is the wrong capture.} Bxd5 10. dxc5 Nd4 $19) 9... Qxc7 10. Qxe6+ Qe7 11. Qxe7+ Ngxe7 12. dxc5 $18) 9. Bd2 {[%emt 0:00:00]} Na5 {[%emt 0:17:18]} 10. Qa4+ {[%emt 0:00:00]} Nc6 {[%emt 0:04:52]} 11. e4 {[%emt 0:00:00]} dxe3 {[%emt 0:08:04]} 12. Nxe3 {[%emt 0:00:00]} Qd4 {[%emt 0:03:16]} (12... Bc5 $11 {remains equal.}) 13. Qb3 {[%emt 0:00:00]} ({White should try} 13. Bc4 $16) 13... Bb4 $1 $14 {[%emt 0:02:11]} 14. Rd1 {[%emt 0:00:00]} Nge7 {[%emt 0:03:49]} (14... Qb6 $14) 15. Bc4 {[%emt 0:00:00]} Bxd2+ {[%emt 0:03:58]} (15... Qb6 $16 {was necessary.}) 16. Rxd2 $18 {[%emt 0:00:00]} Qc5 {[%emt 0:00:05]} 17. Nf3 {[%emt 0:00:00]} b5 {[%emt 0:00:19]} (17... Kf8 $16 18. O-O g6) 18. Bf7+ {[%emt 0:00:00]} Kf8 {[%emt 0:01:31][%cal Be8f8,Bf8g7,Bg7g8][%mdl 32]} 19. O-O {[%emt 0:00:00]} g6 {[%emt 0:00:32]} 20. Bd5 $40 {[%emt 0:00:00][%mdl 128] [#] Black must now prevent Rc2. White goes for the king.} Bb7 $2 {[%emt 0:07:42]} (20... Na5 21. Qd1 Ra7) 21. Bxc6 {[%emt 0:00:00] White is clearly winning.} Bxc6 {[%emt 0:00:26]} 22. Qe6 {[%emt 0:00:00]} (22. Nd4 Bd7 23. Rfd1 Qc7) 22... Kg7 {[%emt 0:01:38] Black is weak on the dark squares} 23. Rd6 {[%emt 0:00:00]} Rhe8 {[%emt 0:00:34]} (23... Rhf8 $142 24. Qxe7+ Rf7) 24. Qxf6+ {[%emt 0:00:00]} Kg8 {[%emt 0:00:02]} 25. Ng5 {[%emt 0:00:00] Weighted Error Value: White=0.07 (flawless) /Black=0.43.  Mistake:       	White=1     	Black=6      Inaccurate:     	---       	Black=1      OK:         	White=8     	Black=8      Best:        	White=4     	Black=1      Strong:       	---       	Black=1} 1-0